bitfinex-derivatives/quotes_BTCF0:USTF0_20251210
["timestamp","ask_amount","ask_price","bid_price","bid_amount"]
[1765362491599,0.1157157,92545.0,92544.0,0.14208]
[1765362492790,0.1117157,92545.0,92544.0,0.15208]
[1765362492998,0.1157157,92545.0,92544.0,0.15208]
[1765362493389,0.10491,92545.0,92544.0,0.1628858]
[1765362493898,0.10391,92545.0,92544.0,0.1628858]
[1765362494193,0.10391,92545.0,92544.0,0.5428858]
[1765362495797,0.003,92545.0,92544.0,0.5428858]
[1765362496095,0.007,92545.0,92544.0,0.5428858]
[1765362497800,0.07249,92545.0,92544.0,0.5428858]
[1765362498302,0.13831,92545.0,92544.0,0.2428858]
[1765362498598,0.13831,92545.0,92544.0,0.5628858]
[1765362498797,0.13831,92545.0,92544.0,0.15208]
[1765362500489,0.13531,92545.0,92544.0,0.15108]
[1765362500694,0.13831,92545.0,92544.0,0.15208]
[1765362501097,0.13831,92545.0,92544.0,0.51208]
[1765362501790,0.0832957,92545.0,92544.0,0.51208]
[1765362502187,0.1491157,92545.0,92544.0,0.51208]
[1765362502496,0.1491157,92545.0,92544.0,0.08242]
[1765362503001,0.1491157,92545.0,92544.0,0.14926]
[1765362504489,0.0832957,92545.0,92544.0,0.14926]
[1765362504693,0.007,92545.0,92544.0,0.54926]
[1765362507201,0.50268,92553.0,92552.0,0.13826]
[1765362507399,0.010804,92560.0,92559.0,0.0108039]
[1765362507699,0.010804,92560.0,92559.0,0.5690639]
[1765362508289,0.076294,92560.0,92559.0,0.5690639]
[1765362508692,0.083294,92560.0,92559.0,0.5700639]
[1765362509300,0.081294,92560.0,92559.0,0.5690639]
[1765362509503,0.147114,92560.0,92559.0,0.5690639]
[1765362509897,0.00016203,92562.0,92561.0,0.17931]
[1765362510103,0.00016203,92562.0,92561.0,0.53931]
[1765362510300,0.06565203,92562.0,92561.0,0.53931]
[1765362510507,0.14227573,92562.0,92561.0,0.30931]
[1765362510708,0.14227573,92562.0,92561.0,0.17931]
[1765362511201,0.14527573,92562.0,92561.0,0.18031]
[1765362512305,0.14827573,92562.0,92561.0,0.61031]
[1765362512606,0.14227573,92562.0,92561.0,0.60931]
[1765362512805,0.14927573,92562.0,92561.0,0.61031]
[1765362512999,0.00716203,92562.0,92561.0,0.61031]
[1765362513708,0.00716203,92562.0,92561.0,0.70031]
[1765362514306,0.00316203,92562.0,92561.0,0.60931]
[1765362514508,0.00616203,92562.0,92561.0,0.61031]
[1765362514704,0.00316203,92562.0,92561.0,0.61031]
[1765362514902,0.00616203,92562.0,92561.0,0.61031]
[1765362515307,0.00316203,92562.0,92561.0,0.61031]
[1765362515602,0.07065203,92562.0,92561.0,0.61031]
[1765362515803,0.13647203,92562.0,92561.0,0.41031]
[1765362516004,0.13647203,92562.0,92561.0,0.55031]
[1765362517111,0.13347203,92562.0,92561.0,0.54931]
[1765362517310,0.13647203,92562.0,92561.0,0.55031]
[1765362519111,0.13447203,92562.0,92561.0,0.55031]
[1765362519312,0.13647203,92562.0,92561.0,0.55031]
[1765362519504,0.00516203,92562.0,92561.0,0.55031]
[1765362519705,0.00016203,92562.0,92561.0,0.54931]
[1765362519906,0.00516203,92562.0,92561.0,0.55031]
[1765362520316,0.00316203,92562.0,92561.0,0.55031]
[1765362520616,0.00516203,92562.0,92561.0,0.55031]
[1765362521509,0.13082203,92562.0,92561.0,0.55031]
[1765362521710,0.12782203,92562.0,92561.0,0.29931]
[1765362522016,0.13082203,92562.0,92561.0,0.5411139]
[1765362522221,0.06787203,92562.0,92561.0,0.5411139]
[1765362522412,0.06587203,92562.0,92561.0,0.5411139]
[1765362522620,0.06487203,92562.0,92561.0,0.5401139]
[1765362522919,0.06787203,92562.0,92561.0,0.5411139]
[1765362523413,0.1364658,92544.0,92543.0,0.06086203]
[1765362523605,0.1364658,92544.0,92543.0,0.12583203]
[1765362526115,0.1404658,92544.0,92543.0,0.12683203]
[1765362526718,0.06671,92544.0,92543.0,0.12683203]
[1765362526918,0.004,92544.0,92543.0,0.12683203]
[1765362527319,0.004,92544.0,92543.0,0.20683203]
[1765362529426,0.00108033,92565.0,92561.0,0.12567]
[1765362529725,0.13662573,92562.0,92561.0,0.12567]
[1765362531221,0.14162573,92562.0,92561.0,0.12667]
[1765362531731,0.14662573,92562.0,92561.0,0.12667]
[1765362531921,0.01596573,92562.0,92561.0,0.12567]
[1765362532121,0.00916203,92562.0,92561.0,0.12667]
[1765362532321,0.00716203,92562.0,92561.0,0.12667]
[1765362532918,0.00616203,92562.0,92561.0,0.12667]
[1765362534429,0.00316203,92562.0,92561.0,0.12667]
[1765362534629,0.00416203,92562.0,92561.0,0.12667]
[1765362535029,0.00316203,92562.0,92561.0,0.12667]
[1765362535739,0.00216203,92562.0,92561.0,0.12667]
[1765362535927,0.00216203,92562.0,92561.0,0.12567]
[1765362535928,0.00016203,92562.0,92561.0,0.12567]
[1765362536127,0.00216203,92562.0,92561.0,0.12667]
[1765362536432,0.00316203,92562.0,92561.0,0.12667]
[1765362537740,0.00416203,92562.0,92561.0,0.12667]
[1765362538241,0.00316203,92562.0,92561.0,0.20667]
[1765362538441,0.00216203,92562.0,92561.0,0.20567]
[1765362538741,0.00516203,92562.0,92561.0,0.20667]
[1765362538936,0.00316203,92562.0,92561.0,0.20667]
[1765362539241,0.00116203,92562.0,92561.0,0.20567]
[1765362539543,0.00316203,92562.0,92561.0,0.20667]
[1765362539834,0.00316203,92562.0,92561.0,0.12667]
[1765362540830,0.00016203,92562.0,92561.0,0.12567]
[1765362541041,0.00216203,92562.0,92561.0,0.12667]
[1765362541340,0.00316203,92562.0,92561.0,0.12667]
[1765362542035,0.00416203,92562.0,92561.0,0.12667]
[1765362542236,0.00416203,92562.0,92561.0,0.21667]
[1765362542428,0.00316203,92562.0,92561.0,0.21667]
[1765362543038,0.00216203,92562.0,92561.0,0.21667]
[1765362543249,0.00316203,92562.0,92561.0,0.21667]
[1765362544529,0.00108033,92565.0,92564.0,0.12567]
[1765362544725,0.50248,92576.0,92575.0,0.16277]
[1765362545130,0.62814,92576.0,92575.0,0.16277]
[1765362545336,0.12566,92563.0,92562.0,0.48647]
[1765362545539,0.1364636,92563.0,92562.0,0.1364737]
[1765362545738,0.00016203,92572.0,92571.0,0.12567]
[1765362546044,0.01096463,92572.0,92571.0,0.12567]
[1765362547938,0.01296463,92572.0,92571.0,0.12567]
[1765362548138,0.01396463,92572.0,92571.0,0.12567]
[1765362548545,0.01196463,92572.0,92571.0,0.12567]
[1765362548747,0.00316203,92572.0,92571.0,0.20567]
[1765362549343,0.00216203,92572.0,92571.0,0.20567]
[1765362549540,0.00316203,92572.0,92571.0,0.20567]
[1765362551034,0.00216203,92572.0,92571.0,0.20567]
[1765362551235,0.00316203,92572.0,92571.0,0.20567]
[1765362551643,0.00216203,92572.0,92571.0,0.20567]
[1765362551945,0.00016203,92572.0,92571.0,0.20567]
[1765362552153,0.00116203,92572.0,92571.0,0.20567]
[1765362552846,0.00016203,92572.0,92571.0,0.20567]
[1765362553047,0.00116203,92572.0,92571.0,0.20567]
[1765362554343,0.00016203,92572.0,92571.0,0.20567]
[1765362554546,0.00116203,92572.0,92571.0,0.20567]
[1765362554945,0.3608,92581.0,92580.0,0.1586916]
[1765362555246,0.3608,92581.0,92580.0,0.2386916]
[1765362555547,0.12565004,92590.0,92589.0,0.1331906]
[1765362556439,0.12565004,92590.0,92589.0,0.14484489]
[1765362556638,0.00108004,92590.0,92589.0,0.14484489]
[1765362557043,0.00108004,92590.0,92589.0,0.23484489]
[1765362557748,0.00508004,92590.0,92589.0,0.23584489]
[1765362559444,0.3608,92598.0,92597.0,0.1331896]
[1765362559648,0.3608,92598.0,92597.0,0.2131896]
[1765362559854,0.00016203,92599.0,92598.0,0.15947]
[1765362560237,0.06204203,92599.0,92598.0,0.15947]
[1765362560547,0.12473203,92599.0,92598.0,0.15947]
[1765362560949,0.1700495,92598.0,92597.0,0.001]
[1765362561335,0.12457,92594.0,92593.0,0.03875368]
[1765362561541,0.1353701,92593.0,92592.0,0.03875368]
[1765362563248,0.135371,92585.0,92584.0,0.18051537]
[1765362564644,0.137371,92585.0,92584.0,0.05812537]
[1765362564840,0.139371,92585.0,92584.0,0.05812537]
[1765362565344,0.1353715,92581.0,92580.0,0.13335363]
[1765362565744,0.1353715,92581.0,92580.0,0.15605363]
[1765362565745,0.12457,92581.0,92580.0,0.15605363]
[1765362565954,0.12757,92585.0,92584.0,0.1331912]
[1765362566645,0.12557,92585.0,92584.0,0.1331912]
[1765362566847,0.12757,92585.0,92584.0,0.1331912]
[1765362567351,0.12857,92585.0,92584.0,0.1331912]
[1765362567552,0.12757,92585.0,92584.0,0.1331912]
[1765362567851,0.06388,92585.0,92584.0,0.1331912]
[1765362568343,0.12657,92585.0,92584.0,0.1331912]
[1765362568542,0.12757,92585.0,92584.0,0.1331912]
[1765362568745,0.003,92585.0,92584.0,0.1331912]
[1765362568945,0.003,92585.0,92584.0,0.4939912]
[1765362569946,0.001,92585.0,92584.0,0.4939912]
[1765362570147,0.002,92585.0,92584.0,0.4939912]
[1765362570452,0.002,92585.0,92584.0,0.5839912]
[1765362570654,0.001,92585.0,92584.0,0.5839912]
[1765362570853,0.06204203,92599.0,92598.0,0.15947]
[1765362571153,0.12473203,92599.0,92598.0,0.15947]
[1765362572055,0.0107999,92596.0,92592.0,0.1331901]
[1765362572241,0.0107999,92596.0,92580.0,0.02286203]
[1765362572242,0.0108008,92588.0,92585.0,0.1331909]
[1765362572449,0.15925,92586.0,92585.0,0.12239]
[1765362572648,0.12457,92581.0,92580.0,0.12255203]
[1765362573756,0.12457,92581.0,92580.0,0.12355203]
[1765362574659,0.12457,92581.0,92580.0,0.12455203]
[1765362575253,0.4961707,92588.0,92587.0,0.1331908]
[1765362575857,0.4961707,92588.0,92587.0,0.12239]
[1765362576960,0.4981707,92588.0,92587.0,0.12239]
[1765362577561,0.4961707,92588.0,92587.0,0.12239]
[1765362577762,0.4981707,92588.0,92587.0,0.12239]
[1765362578263,0.4991707,92588.0,92587.0,0.12239]
[1765362578562,0.4981707,92588.0,92587.0,0.12239]
[1765362578752,0.4991707,92588.0,92587.0,0.12239]
[1765362579561,0.4991707,92588.0,92587.0,0.06278]
[1765362579963,0.1202215,92581.0,92580.0,0.00016203]
[1765362580163,0.1202215,92581.0,92571.0,0.07762346]
[1765362580164,0.10942,92572.0,92571.0,0.07762346]
[1765362580461,0.10942,92572.0,92556.0,0.39788]
[1765362580462,0.1202233,92566.0,92565.0,0.1104]
[1765362581166,0.1202233,92566.0,92562.0,0.03432]
[1765362581167,0.1202227,92571.0,92570.0,0.1104]
[1765362583556,0.1222227,92571.0,92570.0,0.1104]
[1765362585157,0.1222227,92571.0,92570.0,0.16858903]
[1765362585564,0.1222227,92571.0,92570.0,0.1104]
[1765362587563,0.1222227,92571.0,92556.0,0.36096203]
[1765362587564,0.10942,92557.0,92556.0,0.36096203]
[1765362587768,0.10942,92557.0,92556.0,0.05834662]
[1765362587952,0.10942,92540.0,92539.0,0.1212064]
[1765362589667,0.11042,92540.0,92539.0,0.1322064]
[1765362590363,0.11042,92540.0,92539.0,0.1212064]
[1765362592469,0.05625,92540.0,92539.0,0.1212064]
[1765362592966,0.05525,92540.0,92539.0,0.1222064]
[1765362594171,0.10942,92540.0,92539.0,0.1222064]
[1765362594474,0.00016203,92549.0,92539.0,0.1222064]
[1765362594475,0.00016203,92549.0,92548.0,0.1212054]
[1765362594674,0.10958203,92549.0,92548.0,0.1212054]
[1765362595168,0.10958203,92549.0,92548.0,0.1104]
[1765362595366,0.14138,92547.0,92546.0,0.03653075]
[1765362595561,0.1400563,92540.0,92539.0,0.001]
[1765362595759,1.0032963,92540.0,92539.0,0.001]
[1765362595974,0.1202274,92531.0,92530.0,0.11056203]
[1765362596170,0.1202274,92531.0,92530.0,0.15056203]
[1765362597275,0.1202274,92531.0,92530.0,0.11056203]
[1765362597471,0.1202274,92531.0,92530.0,0.05524203]
[1765362597677,0.1202274,92531.0,92530.0,0.11056203]
[1765362597973,0.1202274,92531.0,92530.0,0.00016203]
[1765362598172,0.1202286,92520.0,92519.0,0.05517638]
[1765362598674,0.1202286,92520.0,92519.0,0.11049638]
[1765362598875,0.1202286,92520.0,92519.0,9.638e-05]
[1765362599374,0.1212286,92520.0,92519.0,0.00309638]
[1765362600072,0.1212286,92520.0,92515.0,0.00108092]
[1765362600073,0.1202291,92516.0,92515.0,0.00108092]
[1765362600272,0.1202291,92516.0,92492.0,0.4820119]
[1765362600273,0.10942,92493.0,92492.0,0.4820119]
[1765362600969,0.10951559,92493.0,92492.0,0.4820119]
[1765362601276,9.559e-05,92493.0,92492.0,0.4820119]
[1765362602178,9.559e-05,92493.0,92492.0,0.5720119]
[1765362602375,0.00016213,92502.0,92501.0,0.1212109]
[1765362603285,0.05541213,92502.0,92501.0,0.1212109]
[1765362603578,0.05541213,92502.0,92492.0,0.3836119]
[1765362603579,0.1202318,92493.0,92492.0,0.012]
[1765362603765,0.4810318,92493.0,92492.0,0.012]
[1765362604277,0.02359,92472.0,92465.0,0.0561615]
[1765362604466,0.02359,92472.0,92465.0,0.0010815]
[1765362604467,0.10942,92466.0,92465.0,0.0010815]
[1765362604666,0.0108149,92467.0,92441.0,0.0108178]
[1765362604667,0.10942,92447.0,92441.0,0.0108178]
[1765362604985,0.10942,92447.0,92439.0,1e-08]
[1765362604986,0.1202379,92441.0,92439.0,1e-08]
[1765362605276,0.1202379,92441.0,92400.0,0.03432]
[1765362605277,0.10942,92416.0,92415.0,0.01190298]
[1765362605469,0.10942,92416.0,92415.0,0.08108208]
[1765362605470,0.61286,92416.0,92415.0,0.08108208]
[1765362605783,0.6236808,92416.0,92415.0,0.08108208]
[1765362605971,0.62378584,92416.0,92415.0,0.08108208]
[1765362606279,0.62378584,92416.0,92379.0,0.40802956]
[1765362606280,0.0108234,92395.0,92379.0,0.00021628]
[1765362606581,0.90354504,92416.0,92365.0,0.36188267]
[1765362606582,0.11889524,92389.0,92366.0,0.0108266]
[1765362606776,0.10907113,92400.0,92365.0,0.00108267]
[1765362606777,0.10807114,92377.0,92365.0,0.00108267]
[1765362607075,0.04348,92347.0,92346.0,0.0108289]
[1765362607276,0.73864,92347.0,92346.0,0.08]
[1765362607470,0.04348,92341.0,92315.0,0.00108325]
[1765362607670,0.40428,92341.0,92315.0,0.00108325]
[1765362607879,0.90948,92341.0,92339.0,0.03432]
[1765362608077,0.90948,92341.0,92340.0,0.11148296]
[1765362608078,0.36087999,92341.0,92340.0,0.11148296]
[1765362608279,7.999e-05,92341.0,92340.0,0.11148296]
[1765362608471,0.3945479,92355.0,92354.0,0.1104]
[1765362608673,0.0108282,92353.0,92352.0,0.05532]
[1765362608879,0.00016241,92356.0,92355.0,0.1104]
[1765362609074,0.27127193,92357.0,92356.0,0.1104]
[1765362609378,0.0108275,92359.0,92358.0,0.14472]
[1765362609584,0.01093774,92359.0,92358.0,0.14472]
[1765362609975,0.00011024,92359.0,92358.0,0.14472]
[1765362610171,0.05536024,92359.0,92358.0,0.1104]
[1765362610477,0.15131024,92359.0,92358.0,0.05508]
[1765362610684,0.1512,92350.0,92349.0,0.00016241]
[1765362610981,0.512,92350.0,92349.0,0.00016241]
[1765362611372,0.004,92357.0,92356.0,0.18564]
[1765362612069,0.3608,92358.0,92357.0,0.18564]
[1765362612275,0.0108273,92361.0,92358.0,0.18564]
[1765362612977,0.01093774,92359.0,92358.0,0.18564]
[1765362613281,0.00011024,92359.0,92358.0,0.23875]
[1765362613485,0.3608,92377.0,92358.0,0.23875]
[1765362613486,0.3608,92377.0,92367.0,0.18564]
[1765362613781,0.3608,92377.0,92367.0,0.22564]
[1765362613977,0.3608,92385.0,92384.0,0.18564]
[1765362614577,0.3716244,92385.0,92384.0,0.18564]
[1765362614978,0.0108244,92385.0,92384.0,0.18564]
[1765362615179,0.0108238,92391.0,92390.0,0.09435]
[1765362615582,0.00016241,92394.0,92390.0,0.09435]
[1765362615786,0.00016241,92394.0,92393.0,0.18564]
[1765362615973,0.00016241,92394.0,92393.0,0.54644]
[1765362616581,0.50604,92413.0,92393.0,0.4008]
[1765362616882,0.3608,92417.0,92393.0,0.4008]
[1765362616883,0.0108208,92416.0,92401.0,0.0108225]
[1765362617077,0.3608,92417.0,92411.0,0.18564]
[1765362617078,0.0108214,92412.0,92411.0,0.18564]
[1765362617273,0.3608,92417.0,92411.0,0.18564]
[1765362617472,0.0108213,92412.0,92411.0,0.18564]
[1765362617680,0.3716207,92417.0,92411.0,0.18564]
[1765362618181,0.09084,92412.0,92411.0,0.18564]
[1765362618375,0.17639,92412.0,92402.0,0.00016231]
[1765362618580,0.17639,92403.0,92402.0,0.00016231]
[1765362618778,0.17639,92403.0,92402.0,0.09451231]
[1765362619383,0.17639,92403.0,92402.0,0.00016231]
[1765362619775,0.3608,92409.0,92402.0,0.19662471]
[1765362619976,0.3608,92409.0,92408.0,0.09435]
[1765362620381,0.3608,92409.0,92408.0,0.18564]
[1765362620783,0.17939,92403.0,92402.0,0.00116231]
[1765362621284,0.09384,92403.0,92402.0,0.18680231]
[1765362621476,0.3608,92409.0,92402.0,0.18680231]
[1765362621477,0.00016231,92421.0,92416.0,0.18564]
[1765362621878,0.00016231,92421.0,92420.0,0.18564]
[1765362622286,0.17655231,92421.0,92420.0,0.18564]
[1765362622883,0.17655231,92421.0,92420.0,0.09435]
[1765362623086,0.17655231,92421.0,92417.0,0.3608]
[1765362623283,0.3608,92418.0,92417.0,0.09435]
[1765362623489,0.09084,92418.0,92417.0,0.09435]
[1765362623890,0.17639,92413.0,92412.0,0.0108212]
[1765362624190,0.09084,92409.0,92408.0,0.0108217]
[1765362624386,0.17639,92403.0,92402.0,0.00016231]
[1765362624586,0.1872123,92403.0,92402.0,0.00016231]
[1765362624796,0.5480123,92403.0,92402.0,0.00016231]
[1765362625687,0.17639,92383.0,92376.0,0.3608]
[1765362625989,0.17639,92369.0,92368.0,0.0108264]
[1765362626287,0.0108257,92375.0,92374.0,0.18564]
[1765362626710,0.371625,92381.0,92374.0,0.1964657]
[1765362626893,0.17639,92371.0,92370.0,0.0108261]
[1765362627087,0.17639,92371.0,92367.0,0.3608]
[1765362627088,0.17639,92368.0,92367.0,0.3608]
[1765362627388,0.17639,92368.0,92367.0,0.3708]
[1765362627784,0.17639,92368.0,92367.0,0.3608]
[1765362628495,0.004,92368.0,92367.0,0.54744]
[1765362629797,0.50644231,92384.0,92380.0,0.18564]
[1765362629997,0.45164,92381.0,92380.0,0.196465]
[1765362630304,0.53719,92381.0,92380.0,0.010825]
[1765362630484,0.3608,92381.0,92371.0,0.010826]
[1765362630685,0.3608,92381.0,92374.0,0.0108256]
[1765362630686,0.09084,92375.0,92374.0,0.0108256]
[1765362630893,0.09084,92375.0,92374.0,0.1051756]
[1765362631084,0.3608,92381.0,92380.0,0.09435]
[1765362631284,0.3608,92381.0,92380.0,0.18564]
[1765362631984,0.00016231,92384.0,92381.0,0.0108249]
[1765362632193,0.00016231,92384.0,92383.0,0.18564]
[1765362632786,0.0108219,92407.0,92405.0,0.0108221]
[1765362632997,0.4062,92409.0,92407.0,0.1964619]
[1765362633192,0.09084,92408.0,92407.0,0.1964619]
[1765362634289,0.09084,92408.0,92407.0,0.1974619]
[1765362634487,0.17639,92408.0,92407.0,0.09535]
[1765362634688,0.17639,92408.0,92407.0,0.001]
[1765362634898,0.17639,92408.0,92407.0,0.09435]
[1765362635196,0.17939,92408.0,92407.0,0.09535]
[1765362635693,0.17939,92408.0,92407.0,0.001]
[1765362635896,0.003,92408.0,92407.0,0.18664]
[1765362637100,0.17939,92408.0,92407.0,0.09535]
[1765362637793,0.17939,92408.0,92407.0,0.001]
[1765362637989,0.1872127,92400.0,92399.0,0.3608]
[1765362638193,0.1872149,92381.0,92379.0,0.3608]
[1765362638396,0.0108245,92384.0,92374.0,0.03821003]
[1765362638397,0.17639,92375.0,92374.0,0.03821003]
[1765362638594,0.187216,92372.0,92371.0,0.04903603]
[1765362638900,0.17639,92372.0,92371.0,0.030826]
[1765362639095,0.0108257,92375.0,92374.0,0.1051755]
[1765362639289,0.0108256,92375.0,92374.0,0.1051755]
[1765362639495,0.1016656,92375.0,92374.0,0.09435]
[1765362639697,0.1016656,92375.0,92374.0,0.18564]
[1765362639897,0.0108261,92371.0,92370.0,0.3608]
[1765362640098,0.0964261,92371.0,92370.0,0.3808]
[1765362640297,0.0964261,92371.0,92370.0,0.55643]
[1765362640595,0.0108261,92371.0,92370.0,0.55643]
[1765362640797,0.003,92372.0,92371.0,0.1864561]
[1765362640995,0.003,92372.0,92371.0,0.17563]
[1765362641194,0.17094,92372.0,92371.0,0.17563]
[1765362641389,0.16794,92372.0,92371.0,0.17563]
[1765362641790,0.16794,92372.0,92371.0,0.08723]
[1765362642197,0.17094,92372.0,92371.0,0.0990561]
[1765362643005,0.17694,92372.0,92371.0,0.001]
[1765362643392,0.17094,92372.0,92371.0,0.001]
[1765362643593,0.17794,92372.0,92371.0,0.001]
[1765362644211,0.17494,92372.0,92371.0,0.08723]
[1765362644501,0.01,92372.0,92371.0,0.17663]
[1765362646000,0.01,92372.0,92371.0,0.17763]
[1765362646192,0.17794,92372.0,92371.0,0.17763]
[1765362646400,0.17094,92372.0,92371.0,0.17663]
[1765362646598,0.17794,92372.0,92371.0,0.17663]
[1765362647401,0.17794,92372.0,92371.0,0.001]
[1765362648603,0.53874,92372.0,92371.0,0.001]
[1765362652811,0.53874,92372.0,92371.0,0.17663]
[1765362653010,1.04478,92372.0,92371.0,0.17663]
[1765362655107,0.3708,92372.0,92371.0,0.17663]
[1765362655314,0.01,92372.0,92371.0,0.1874561]
[1765362655510,0.0956,92372.0,92371.0,0.1874561]
[1765362656410,0.17794,92372.0,92371.0,0.08823]
[1765362656739,0.17794,92372.0,92371.0,0.001]
[1765362657207,0.17794,92372.0,92371.0,0.05851785]
[1765362657606,0.17794,92372.0,92371.0,0.001]
[1765362658619,0.17794,92372.0,92371.0,0.17663]
[1765362659018,0.51592,92372.0,92371.0,0.23414785]
[1765362659211,0.51592,92372.0,92371.0,0.17663]
[1765362659512,0.01,92372.0,92371.0,0.17663]
[1765362659708,0.01,92372.0,92371.0,0.53743]
[1765362659904,0.01,92372.0,92371.0,0.61743]
[1765362660106,0.00016231,92381.0,92380.0,0.186455]
[1765362660309,0.00016231,92381.0,92380.0,0.627255]
[1765362660722,0.4464,92397.0,92396.0,0.1864531]
[1765362661020,0.010822,92406.0,92405.0,0.1864521]
[1765362661321,1.0455219,92408.0,92407.0,0.17563]
[1765362662006,0.5395619,92408.0,92407.0,0.17563]
[1765362662411,0.1787622,92404.0,92403.0,0.05823775]
[1765362662717,0.1787622,92404.0,92403.0,0.08723]
[1765362662918,0.1787622,92404.0,92403.0,0.17563]
[1765362663115,0.1787622,92404.0,92402.0,0.06906005]
[1765362663116,0.008,92408.0,92407.0,0.1874519]
[1765362663320,0.008,92408.0,92407.0,0.24568965]
[1765362663721,0.008,92408.0,92407.0,0.1874519]
[1765362663916,0.005,92408.0,92407.0,0.1864519]
[1765362664715,0.0108216,92410.0,92409.0,0.17563]
[1765362664910,0.0108212,92413.0,92412.0,0.17563]
[1765362665114,0.1787615,92410.0,92409.0,0.05818531]
[1765362665317,0.1787615,92410.0,92409.0,0.17563]
[1765362666217,0.1004212,92413.0,92412.0,0.17563]
[1765362666517,0.00016231,92417.0,92416.0,0.1864508]
[1765362667412,0.00016231,92417.0,92416.0,0.19813164]
[1765362667612,0.00016231,92417.0,92416.0,0.25629495]
[1765362668115,0.00016231,92417.0,92416.0,0.19813164]
[1765362668522,0.3608,92436.0,92435.0,0.1864486]
[1765362668709,0.3608,92447.0,92433.0,0.04087]
[1765362668710,0.010818,92440.0,92439.0,0.010818]
[1765362669019,0.50568,92441.0,92440.0,0.17563]
[1765362669208,0.67362,92441.0,92440.0,0.17563]
[1765362669725,0.50568,92441.0,92440.0,0.17563]
[1765362670121,0.59128,92441.0,92440.0,0.17563]
[1765362670314,0.59328,92441.0,92440.0,0.17663]
[1765362670923,0.6731,92441.0,92440.0,0.08823]
[1765362671314,0.6751,92441.0,92440.0,0.08823]
[1765362671520,0.6751,92441.0,92440.0,0.16467]
[1765362672417,0.6751,92441.0,92440.0,0.001]
[1765362673226,0.6751,92441.0,92440.0,0.16394]
[1765362673525,0.59528,92441.0,92440.0,0.16394]
[1765362674028,0.50968,92441.0,92440.0,0.16394]
[1765362675725,0.59124,92441.0,92440.0,0.16394]
[1765362676027,0.66681,92441.0,92440.0,0.16394]
[1765362676230,0.59124,92441.0,92440.0,0.16394]
[1765362676527,0.66681,92441.0,92440.0,0.16394]
[1765362677128,0.59124,92441.0,92440.0,0.16394]
[1765362677324,0.66681,92441.0,92440.0,0.16394]
[1765362678328,0.66681,92441.0,92440.0,0.08042]
[1765362678513,0.66681,92441.0,92440.0,0.001]
[1765362679216,0.66681,92441.0,92440.0,0.16474]
[1765362679618,0.1679489,92432.0,92431.0,0.00016231]
[1765362679814,0.1679509,92415.0,92414.0,0.3608]
[1765362680020,0.1679509,92415.0,92414.0,0.3708]
[1765362680319,0.1679509,92415.0,92414.0,0.3608]
[1765362680726,0.51602,92423.0,92422.0,0.16374]
[1765362680922,0.67315,92423.0,92422.0,0.16374]
[1765362681821,0.67315,92423.0,92422.0,0.17274]
[1765362682026,0.67515,92423.0,92422.0,0.18374]
[1765362682424,0.67415,92423.0,92422.0,0.17274]
[1765362682728,0.67915,92423.0,92422.0,0.16474]
[1765362685321,0.66833,92423.0,92422.0,0.16474]
[1765362685522,0.5112,92423.0,92422.0,0.16474]
[1765362685722,0.006,92423.0,92422.0,0.16474]
[1765362686124,0.08756,92423.0,92422.0,0.16474]
[1765362686930,0.006,92423.0,92422.0,0.16474]
[1765362687631,0.16313,92423.0,92422.0,0.16474]
[1765362688130,0.00016231,92432.0,92431.0,0.174559]
[1765362689225,0.1679478,92442.0,92441.0,0.0108178]
[1765362689734,0.1679478,92442.0,92441.0,0.1745578]
[1765362690231,0.54589677,92460.0,92441.0,0.1745578]
[1765362690232,0.51809231,92451.0,92450.0,0.16374]
[1765362690432,0.15729231,92451.0,92450.0,0.16374]
[1765362690820,0.2061,92450.0,92449.0,0.0108169]
[1765362691528,0.15713,92446.0,92445.0,0.06901079]
[1765362693236,0.002,92446.0,92442.0,0.0108178]
[1765362693426,0.15713,92443.0,92442.0,0.0108178]
[1765362693625,0.167948,92443.0,92442.0,0.0108178]
[1765362694249,0.0108185,92436.0,92435.0,0.07765033]
[1765362694534,0.1679488,92433.0,92432.0,0.00016231]
[1765362696230,0.1679488,92433.0,92432.0,0.16390231]
[1765362696433,0.15713,92433.0,92432.0,0.20272355]
[1765362696631,0.15713,92433.0,92432.0,0.16390231]
[1765362697030,0.15713,92433.0,92432.0,0.16490231]
[1765362697238,0.58648,92437.0,92436.0,0.16374]
[1765362697434,0.3608,92441.0,92440.0,0.223948]
[1765362697627,0.49433,92450.0,92449.0,0.0910369]
[1765362697838,0.5669,92450.0,92449.0,0.1745569]
[1765362700243,0.5669,92450.0,92449.0,0.0910369]
[1765362701146,0.5669,92450.0,92449.0,0.1298651]
[1765362701534,0.5699,92450.0,92449.0,0.1308651]
[1765362701751,0.5699,92450.0,92449.0,0.0920369]
[1765362702038,0.5699,92450.0,92449.0,0.1648969]
[1765362702944,0.5719,92450.0,92449.0,0.1648969]
[1765362703245,0.5719,92450.0,92449.0,0.0118169]
[1765362704141,0.07863,92448.0,92440.0,0.05825207]
[1765362704343,0.1647085,92436.0,92435.0,0.05740283]
[1765362704643,0.1647088,92433.0,92432.0,0.00016231]
[1765362705838,0.65877,92433.0,92432.0,0.14662231]
[1765362706142,0.15489,92433.0,92432.0,0.14762231]
[1765362706342,0.001,92433.0,92432.0,0.14762231]
[1765362706744,0.001,92433.0,92432.0,0.14862231]
[1765362708138,0.15489,92433.0,92432.0,0.00216231]
[1765362709136,0.15589,92433.0,92432.0,0.00216231]
[1765362710046,0.15689,92433.0,92432.0,0.00216231]
[1765362712549,0.15389,92433.0,92432.0,0.00116231]
[1765362712749,0.15689,92433.0,92432.0,0.00216231]
[1765362713450,0.15689,92433.0,92432.0,0.00116231]
[1765362715150,0.15889,92433.0,92432.0,0.00116231]
[1765362715452,0.15889,92433.0,92432.0,0.14762231]
[1765362716045,0.50988,92433.0,92432.0,0.14762231]
[1765362716551,0.58514,92433.0,92432.0,0.14762231]
[1765362716761,0.66377,92433.0,92432.0,0.14762231]
[1765362717849,0.005,92433.0,92432.0,0.18762231]
[1765362718151,0.005,92433.0,92432.0,0.26527264]
[1765362718547,0.005,92433.0,92432.0,0.22527264]
[1765362718854,0.15889,92433.0,92432.0,0.22527264]